lending/lending_fUSD_20250122
["ID","MTS","AMOUNT","RATE_DAILY","PERIOD"]
[350018442,1737569447175,-500.0,0.00021369,2]
[350018443,1737569447185,-500.0,0.00021369,2]
[350018444,1737569447195,-1227.71,0.00021369,2]
[350018445,1737569447205,-554.89,0.00021369,2]
[350018446,1737569447215,-1340.35,0.00021369,2]
[350018447,1737569447225,-500.0,0.00021369,2]
[350018448,1737569447236,-500.0,0.00021369,2]
[350018449,1737569447246,-500.0,0.00021369,2]
[350018450,1737569447256,-652.78,0.00021369,2]
[350018451,1737569447267,-508.63,0.00021369,2]
[350018452,1737569447277,-500.0,0.00021369,2]
[350018453,1737569447287,-719.99,0.00021369,2]
[350018454,1737569447298,-672.06,0.00021369,2]
[350018455,1737569447308,-818.15,0.00021369,2]
[350018456,1737569447320,-1285.72,0.00021369,2]
[350018457,1737569447330,-596.0,0.00021369,2]
[350018458,1737569447340,-500.0,0.00021369,2]
[350018459,1737569447350,-500.0,0.00021369,2]
[350018460,1737569447363,-764.07,0.00021369,2]
[350018461,1737569447373,-1005.56,0.00021369,2]
[350018462,1737569447383,-500.0,0.00021369,2]
[350018463,1737569447392,-500.0,0.00021369,2]
[350018464,1737569447403,-500.0,0.00021369,2]
[350018465,1737569447412,-819.06,0.00021369,2]
[350018466,1737569447422,-500.0,0.00021369,2]
[350018467,1737569447433,-1213.77,0.00021369,2]
[350018468,1737569447444,-500.0,0.00021369,2]
[350018469,1737569447455,-674.89,0.00021369,2]
[350018470,1737569447465,-726.09,0.00021369,2]
[350018471,1737569447474,-1606.41,0.00021369,2]
[350018472,1737569447484,-500.0,0.00021369,2]
[350018473,1737569447494,-962.8,0.00021369,2]
[350018474,1737569447504,-500.0,0.00021369,2]
[350018475,1737569447514,-518.17,0.00021369,2]
[350018476,1737569447525,-547.75,0.00021369,2]
[350018477,1737569447535,-394.39349595,0.00021369,2]
[350018478,1737569447545,-500.0,0.00021369,2]
[350018479,1737569447555,-500.0,0.00021369,2]
[350018480,1737569447567,-1414.99,0.00021369,2]
[350018481,1737569447578,-594.43,0.00021369,2]
[350018482,1737569447589,-500.0,0.00021369,2]
[350018483,1737569447770,-647.83,0.00021369,2]
[350018484,1737569447780,-606.85,0.00021369,2]
[350018485,1737569447790,-500.0,0.00021369,2]
[350018486,1737569447800,-500.0,0.00021369,2]
[350018487,1737569447810,-681.88,0.00021369,2]
[350018488,1737569447820,-500.0,0.00021369,2]
[350018489,1737569447830,-500.0,0.00021369,2]
[350018490,1737569447841,-500.0,0.00021369,2]
[350018491,1737569447852,-500.0,0.00021369,2]
[350018492,1737569447862,-500.0,0.00021369,2]
[350018493,1737569447872,-509.41,0.00021369,2]
[350018494,1737569447881,-500.0,0.00021369,2]
[350018495,1737569447890,-1114.72,0.00021369,2]
[350018496,1737569447899,-971.45,0.00021369,2]
[350018497,1737569447908,-753.12,0.00021369,2]
[350018498,1737569447917,-500.0,0.00021369,2]
[350018499,1737569447927,-500.0,0.00021369,2]
[350018500,1737569447936,-500.0,0.00021369,2]
[350018501,1737569447946,-682.21,0.00021369,2]
[350018502,1737569447955,-1375.86,0.00021369,2]
[350018503,1737569447965,-567.54,0.00021369,2]
[350018504,1737569447975,-500.0,0.00021369,2]
[350018505,1737569447984,-500.0,0.00021369,2]
[350018506,1737569447994,-500.0,0.00021369,2]
[350018507,1737569448004,-1132.85,0.00021369,2]
[350018508,1737569448013,-625.26,0.00021369,2]
[350018509,1737569448023,-1902.0,0.00021377,2]
[350018510,1737569448032,-1306.0,0.00021378,2]
[350018511,1737569448042,-1168.66,0.000214,2]
[350018512,1737569448051,-366.0,0.000214,2]
[350018513,1737569448062,-150.0,0.00021404,2]
[350018514,1737569448072,-250.0,0.00021404,2]
[350018515,1737569448082,-250.0,0.00021404,2]
[350018516,1737569448091,-261.567389,0.00021417,2]
[350018517,1737569448101,-5449.35535479,0.00021417,2]
[350018518,1737569448110,-211.0,0.0002143,2]
[350018519,1737569448120,-274.7109116,0.00021452,2]
[350018520,1737569448130,-1362.61920152,0.00021456,2]
[350018521,1737569448139,-150.0,0.00021459,2]
[350018522,1737569448149,-2013.0,0.00021459,2]
[350018523,1737569448158,-1267.0,0.00021459,2]
[350018524,1737569448168,-567.0,0.00021459,2]
[350018525,1737569448178,-332.977,0.00021459,2]
[350018526,1737569448188,-906.0,0.00021459,2]
[350018527,1737569448198,-3984.0,0.00021459,2]
[350018528,1737569448208,-538.0,0.00021459,2]
[350018529,1737569448218,-5449.35535479,0.00021486,2]
[350018530,1737569448227,-5449.35535479,0.00021555,2]
[350018531,1737569448237,-167.07,0.00021569,2]
[350018532,1737569448246,-1902.0,0.00021598,2]
[350018533,1737569448255,-5449.35535479,0.00021624,3]
[350018534,1737569448266,-500.0,0.00021633,2]
[350018535,1737569448275,-500.0,0.00021639,2]
[350018536,1737569448285,-500.0,0.00021639,2]
[350018537,1737569448294,-500.0,0.00021639,2]
[350018538,1737569448303,-500.0,0.00021639,2]
[350018539,1737569448314,-500.0,0.00021639,2]
[350018540,1737569448324,-500.0,0.00021639,2]
[350018541,1737569448333,-500.0,0.00021639,2]
[350018542,1737569448343,-500.0,0.00021639,2]
[350018543,1737569448357,-500.0,0.00021639,2]
[350018544,1737569448367,-532.26,0.00021639,2]
[350018545,1737569448377,-500.0,0.00021639,2]
[350018546,1737569448386,-500.0,0.00021639,2]
[350018547,1737569448397,-500.0,0.00021639,2]
[350018548,1737569448406,-500.0,0.00021639,2]
[350018549,1737569448416,-500.0,0.00021639,2]
[350018550,1737569448426,-500.0,0.00021639,2]
[350018551,1737569448437,-500.0,0.00021639,2]
[350018552,1737569448448,-500.0,0.00021639,2]
[350018553,1737569448457,-567.7,0.00021639,2]
[350018554,1737569448467,-1188.59,0.00021639,2]
[350018555,1737569448476,-2444.39,0.00021639,2]
[350018556,1737569448485,-846.87,0.00021639,2]
[350018557,1737569448495,-738.5,0.00021639,2]
[350018558,1737569448504,-954.83,0.00021639,2]
[350018559,1737569448515,-500.0,0.00021639,2]
[350018560,1737569448524,-629.0,0.00021639,2]
[350018561,1737569448534,-585.23,0.00021639,2]
[350018562,1737569448544,-574.04,0.00021639,2]
[350018563,1737569448554,-500.0,0.00021639,2]
[350018564,1737569448564,-933.85,0.00021639,2]
[350018565,1737569448574,-1157.92,0.00021639,2]
[350018566,1737569448583,-449.05635063,0.0002164,2]
[350018567,1737569448593,-500.0,0.00021643,2]
[350018568,1737569448603,-500.0,0.00021643,2]
[350018569,1737569448612,-500.0,0.00021643,2]
[350018570,1737569448622,-500.0,0.00021643,2]
[350018571,1737569448631,-500.0,0.00021643,2]
[350018572,1737569448641,-500.0,0.00021643,2]
[350018573,1737569448651,-500.0,0.00021643,2]
[350018574,1737569448660,-435.935539,0.00021643,2]
[350018575,1737569448670,-500.0,0.00021643,2]
[350018576,1737569448680,-490.7455,0.00021643,2]
[350018577,1737569448690,-500.0,0.00021643,2]
[350018578,1737569448700,-500.0,0.00021643,2]
[350018579,1737569448710,-500.0,0.00021643,2]
[350018580,1737569448720,-500.0,0.00021643,2]
[350018581,1737569448729,-500.0,0.00021643,2]
[350018582,1737569448739,-500.0,0.00021643,2]
[350018583,1737569448749,-500.0,0.00021643,2]
[350018584,1737569448758,-500.0,0.00021643,2]
[350018585,1737569448768,-500.0,0.00021643,2]
[350018586,1737569448777,-500.0,0.00021643,2]
[350018587,1737569448787,-500.0,0.00021643,2]
[350018588,1737569448796,-500.0,0.00021643,2]
[350018589,1737569448806,-500.0,0.00021643,2]
[350018590,1737569448816,-500.0,0.00021643,2]
[350018591,1737569448826,-500.0,0.00021643,2]
[350018592,1737569448836,-500.0,0.00021643,2]
[350018593,1737569448845,-500.0,0.00021643,2]
[350018594,1737569448854,-500.0,0.00021643,2]
[350018595,1737569448864,-500.0,0.00021643,2]
[350018596,1737569448874,-500.0,0.00021643,2]
[350018597,1737569448883,-753.81,0.00021643,2]
[350018598,1737569448893,-553.07,0.00021643,2]
[350018599,1737569448903,-500.0,0.00021643,2]
[350018600,1737569448912,-858.37,0.00021643,2]
[350018601,1737569448921,-500.0,0.00021643,2]
[350018602,1737569448931,-825.74,0.00021643,2]
[350018603,1737569448940,-500.0,0.00021643,2]
[350018604,1737569448949,-500.0,0.00021643,2]
[350018605,1737569448958,-500.0,0.00021643,2]
[350018606,1737569448968,-1227.71,0.00021643,2]
[350018607,1737569448978,-554.89,0.00021643,2]
[350018608,1737569448988,-1340.35,0.00021643,2]
[350018609,1737569448998,-500.0,0.00021643,2]
[350018610,1737569449009,-500.0,0.00021643,2]
[350018611,1737569449018,-178.63731674,0.00021643,2]
[350018612,1737569449028,-652.78,0.00021643,2]
[350018613,1737569449038,-508.63,0.00021643,2]
[350018614,1737569449048,-500.0,0.00021643,2]
[350018615,1737569449057,-719.99,0.00021643,2]
[350018616,1737569449068,-672.06,0.00021643,2]
[350018617,1737569449078,-818.15,0.00021643,2]
[350018618,1737569449087,-1285.72,0.00021643,2]
[350018619,1737569449097,-596.0,0.00021643,2]
[350018620,1737569449106,-500.0,0.00021643,2]
[350018621,1737569449116,-500.0,0.00021643,2]
[350018622,1737569449125,-764.07,0.00021643,2]
[350018623,1737569449135,-1005.56,0.00021643,2]
[350018624,1737569449145,-500.0,0.00021643,2]
[350018625,1737569449154,-500.0,0.00021643,2]
[350018626,1737569449164,-819.06,0.00021643,2]
[350018627,1737569449173,-500.0,0.00021643,2]
[350018628,1737569449182,-349.97655895,0.00021643,2]
[350018629,1737569449192,-1213.77,0.00021643,2]
[350018630,1737569449202,-500.0,0.00021643,2]
[350018631,1737569449213,-674.89,0.00021643,2]
[350018632,1737569449223,-726.09,0.00021643,2]
[350018633,1737569449232,-1606.41,0.00021643,2]
[350018634,1737569449242,-500.0,0.00021643,2]
[350018635,1737569449252,-962.8,0.00021643,2]
[350018636,1737569449262,-500.0,0.00021643,2]
[350018637,1737569449271,-518.17,0.00021643,2]
[350018638,1737569449281,-547.75,0.00021643,2]
[350018639,1737569449290,-500.0,0.00021643,2]
[350018640,1737569449300,-262.90797953,0.00021643,2]
[350018641,1737569449311,-1414.99,0.00021643,2]
[350018642,1737569449321,-594.43,0.00021643,2]
[350018643,1737569449333,-500.0,0.00021643,2]
[350018644,1737569449342,-647.83,0.00021643,2]
[350018645,1737569449353,-606.85,0.00021643,2]
[350018646,1737569449365,-500.0,0.00021643,2]
[350018647,1737569449374,-500.0,0.00021643,2]
[350018648,1737569449384,-681.88,0.00021643,2]
[350018649,1737569449393,-500.0,0.00021643,2]
[350018650,1737569449403,-500.0,0.00021643,2]
[350018651,1737569449414,-500.0,0.00021643,2]
[350018652,1737569449424,-500.0,0.00021643,2]
[350018653,1737569449437,-500.0,0.00021643,2]
[350018654,1737569449446,-509.41,0.00021643,2]
[350018655,1737569449457,-500.0,0.00021643,2]
[350018656,1737569449467,-1114.72,0.00021643,2]
[350018657,1737569449477,-971.45,0.00021643,2]
[350018658,1737569449486,-753.12,0.00021643,2]
[350018659,1737569449496,-500.0,0.00021643,2]
[350018660,1737569449506,-434.79529053,0.00021643,2]
[350018661,1737569449516,-500.0,0.00021643,2]
[350018662,1737569449526,-682.21,0.00021643,2]
[350018663,1737569449536,-1375.86,0.00021643,2]
[350018664,1737569449547,-567.54,0.00021643,2]
[350018665,1737569449557,-500.0,0.00021643,2]
[350018666,1737569449568,-500.0,0.00021643,2]
[350018667,1737569449577,-500.0,0.00021643,2]
[350018668,1737569449587,-1132.85,0.00021643,2]
[350018669,1737569449596,-625.26,0.00021643,2]
[350018670,1737569449606,-1362.61920152,0.00021678,2]
[350018671,1737569449615,-3306.91639839,0.00021693,3]
[350018672,1737569449788,-2142.4389564,0.00021693,3]
[350018673,1737569449798,-10532.0781716,0.000217,2]
[350018674,1737569449810,-13045.34374822,0.000217,2]
[350018675,1737569449912,-500.0,0.00019999,2]
[350018676,1737569449922,-309.02993991,0.000203,2]
[350018677,1737569449931,-9933.61346509,0.000217,2]
[350018678,1737569449947,-10450.0,0.000217,2]
[350018679,1737569450005,-1855.56683607,0.000217,2]
[350018680,1737569450017,-20480.15856,0.000217,2]
[350018681,1737569450028,-300.04,0.000217,2]
[350018682,1737569450043,-40721.82281523,0.000217,2]
[350018684,1737570308690,1148537.83384108,0.00012,2]
[350018685,1737570320956,1381.77124352,9e-05,2]
[350018686,1737570330638,3812.77937389,0.00011,2]
[350018687,1737570337307,275.16771606,8e-05,2]
[350018694,1737570452024,-165.42,0.00015797,2]
[350018695,1737570452048,-404.62452774,0.00016,2]
[350018696,1737570452073,-785.27,0.00017598,2]
[350018697,1737570452094,-1428.30671256,0.00018,3]
[350018700,1737570475353,809.66937692,0.0001,2]
[350018701,1737570479447,183054.21613425,0.0001,2]
[350018704,1737570519210,150.0,0.00012,2]
[350018720,1737570632284,-550.0,0.000181,2]
[350018721,1737570632296,-550.43305814,0.000181,2]
[350018722,1737570632305,-500.0,0.00018548,2]
[350018723,1737570632321,-1000.0,0.00018971,2]
[350018724,1737570632331,-839.12,0.00018988,2]
[350018725,1737570632343,-1500.0,0.00019009,2]
[350018726,1737570632352,-791.9601676,0.0001901,2]
[350018727,1737570632362,-250.0,0.00019096,2]
[350018728,1737570632372,-23900.0,0.00019368,2]
[350018729,1737570632383,-250.0,0.00019613,2]
[350018730,1737570632393,-172.33,0.00019638,2]
[350018731,1737570632402,-157.89,0.0001964,30]
[350018732,1737570632413,-9999.99,0.0001964,2]
[350018733,1737570632422,-286.49,0.00019784,2]
[350018734,1737570632431,-1635.24,0.00019784,2]
[350018735,1737570632440,-150.99,0.00019784,2]
[350018736,1737570632449,-9999.99,0.00019784,2]
[350018737,1737570632458,-388.27,0.00019822,2]
[350018738,1737570632468,-150.99,0.00019822,2]
[350018739,1737570632477,-785.27,0.00019862,2]
[350018740,1737570632486,-1000.0,0.00019898,2]
[350018741,1737570632495,-312.0042,0.00019898,2]
[350018742,1737570632504,-5669.7426,0.00019899,2]
[350018743,1737570632514,-10845.91394923,0.00019899,2]
[350018744,1737570632538,-1117.93355077,0.00019899,2]
[350018745,1737570632547,-1780.2079,0.00019899,2]
[350018746,1737570632557,-155.569,0.000199,2]
[350018747,1737570632566,-1892.769,0.000199,2]
[350018748,1737570632575,-1617.5676199,0.000199,3]
[350018749,1737570632585,-2622.05224,0.000199,2]
[350018750,1737570632595,-2186.9280649,0.000199,2]
[350018751,1737570632605,-2186.92806484,0.00019969,2]
[350018752,1737570632614,-444.39,0.0001999,2]
[350018753,1737570632624,-444.39,0.0001999,2]
[350018754,1737570632633,-500.0,0.00019998,2]
[350018755,1737570632643,-500.0,0.00019998,2]
[350018756,1737570632652,-500.0,0.00019998,2]
[350018757,1737570632662,-500.0,0.00019998,2]
[350018758,1737570632671,-500.0,0.00019998,2]
[350018759,1737570632684,-500.0,0.00019998,2]
[350018760,1737570632694,-500.0,0.00019998,2]
[350018761,1737570632703,-500.0,0.00019998,2]
[350018762,1737570632713,-500.0,0.00019998,2]
[350018763,1737570632723,-500.0,0.00019998,2]
[350018764,1737570632733,-500.0,0.00019998,2]
[350018765,1737570632742,-609.90763597,0.00019998,2]
[350018767,1737570632751,-500.0,0.00019998,2]
[350018769,1737570632763,-500.0,0.00019998,2]
[350018771,1737570632772,-500.0,0.00019998,2]
[350018773,1737570632781,-500.0,0.00019998,2]
[350018776,1737570632796,-500.0,0.00019998,2]
[350018778,1737570632810,-500.0,0.00019998,2]
[350018780,1737570632820,-500.0,0.00019998,2]
[350018782,1737570632830,-500.0,0.00019998,2]
[350018784,1737570632840,-500.0,0.00019998,2]
[350018786,1737570632849,-500.0,0.00019998,2]
[350018788,1737570632859,-500.0,0.00019998,2]
[350018790,1737570632868,-500.0,0.00019998,2]
[350018792,1737570632878,-500.0,0.00019998,2]
[350018794,1737570632887,-500.0,0.00019998,2]
[350018796,1737570632896,-591.98413571,0.00019998,2]
[350018798,1737570632906,-500.0,0.00019998,2]
[350018800,1737570632916,-500.0,0.00019998,2]
[350018802,1737570632925,-500.0,0.00019998,2]
[350018804,1737570632934,-500.0,0.00019998,2]
[350018806,1737570632944,-500.0,0.00019998,2]
[350018808,1737570632953,-175.39666005,0.00019998,2]
[350018810,1737570632962,-500.0,0.00019999,2]
[350018812,1737570632972,-500.0,0.00019999,2]
[350018814,1737570632982,-500.0,0.00019999,2]
[350018816,1737570632992,-583.8,0.00019999,2]
[350018819,1737570633002,-500.0,0.00019999,2]
[350018821,1737570633012,-500.0,0.00019999,2]
[350018823,1737570633021,-697.88,0.00019999,2]
[350018825,1737570633031,-574.82,0.00019999,2]
[350018827,1737570633041,-648.42,0.00019999,2]
[350018828,1737570633050,-500.0,0.00019999,2]
[350018831,1737570633060,-500.0,0.00019999,2]
[350018833,1737570633070,-500.0,0.00019999,2]
[350018835,1737570633080,-802.33,0.00019999,2]
[350018837,1737570633090,-568.23,0.00019999,2]
[350018839,1737570633100,-500.0,0.00019999,2]
[350018841,1737570633109,-500.0,0.00019999,2]
[350018843,1737570633120,-192.00801961,0.00019999,2]
[350018845,1737570633130,-500.0,0.00019999,2]
[350018847,1737570633141,-1020.01,0.00019999,2]
[350018849,1737570633151,-500.0,0.00019999,2]
[350018851,1737570633160,-500.0,0.00019999,2]
[350018853,1737570633170,-500.0,0.00019999,2]
[350018855,1737570633179,-500.0,0.00019999,2]
[350018857,1737570633188,-500.0,0.00019999,2]
[350018859,1737570633198,-1237.73,0.00019999,2]
[350018861,1737570633207,-601.45,0.00019999,2]
[350018863,1737570633217,-568.5,0.00019999,2]
[350018865,1737570633226,-500.0,0.00019999,2]
[350018867,1737570633236,-500.0,0.00019999,2]
[350018869,1737570633246,-500.0,0.00019999,2]
[350018871,1737570633255,-500.0,0.00019999,2]
[350018873,1737570633266,-500.0,0.00019999,2]
[350018875,1737570633275,-636.04,0.00019999,2]
[350018877,1737570633285,-500.0,0.00019999,2]
[350018879,1737570633295,-500.0,0.00019999,2]
[350018881,1737570633305,-944.04,0.00019999,2]
[350018883,1737570633314,-500.0,0.00019999,2]
[350018885,1737570633325,-500.0,0.00019999,2]
[350018887,1737570633335,-500.0,0.00019999,2]
[350018889,1737570633350,-500.0,0.00019999,2]
[350018891,1737570633359,-500.0,0.00019999,2]
[350018893,1737570633369,-500.0,0.00019999,2]
[350018895,1737570633379,-500.0,0.00019999,2]
[350018897,1737570633390,-500.0,0.00019999,2]
[350018899,1737570633400,-2985.353508,0.0002,2]
[350018901,1737570633411,-38672.92812767,0.0002,2]
[350018903,1737570633425,-5115.5990607,0.0002,2]
[350018906,1737570633443,-500.0,0.00019999,2]
[350018908,1737570633452,-2842.09999,0.0002,2]
[350018910,1737570633464,-97066.24436896,0.0002,2]
[350018913,1737570633474,-19341.23783468,0.0002,2]
[350018915,1737570633485,-2760.70171839,0.0002,2]
[350018917,1737570633495,-1790.77987893,0.0002,2]
[350018918,1737570633504,-250.43473939,0.0002,2]
[350018920,1737570633514,-44757.05478655,0.0002,2]
[350018923,1737570633526,-614.72573488,0.0002,2]
[350018926,1737570633551,-2194.53380869,0.0002,2]
[350018929,1737570633562,-329.7,0.0002,2]
[350018932,1737570633582,-457.32324151,0.0002,2]
[350018934,1737570633597,-635.50848056,0.0002,2]
[350019254,1737570638215,-500.0,0.00019999,2]
[350019255,1737570638224,-558.42131166,0.0002,2]
[350019256,1737570638235,-2939.02903934,0.0002,2]
[350019257,1737570638271,-515.0,0.0002,2]
[350019258,1737570638282,-1581.42146191,0.0002,2]
[350019259,1737570638293,-333.52492849,0.0002,2]
[350019260,1737570638328,-7333.20151481,0.0002,2]
[350019261,1737570638339,-4849.99996427,0.0002,2]
[350019262,1737570638352,-8277.934682,0.0002,2]
[350019263,1737570638385,-941.57868834,0.0002,2]
[350019264,1737570638442,-31471.9394552,0.0002,2]
[350019277,1737570638686,-261.01785856,0.0002,2]
[350019286,1737570640352,-470.56482525,0.00019999,2]
[350019287,1737570640364,-29.43517475,0.00019999,2]
[350019288,1737570640374,-2055.18166525,0.0002,2]
[350019289,1737570640515,-6685.92315262,0.0002,2]
[350019290,1737570640574,-317.58,0.0002,2]
[350019291,1737570640631,-250.86035661,0.0002,2]
[350019292,1737570640690,-7545.05018015,0.0002,2]
[350019295,1737570640704,-63911.34516208,0.0002,2]
[350019346,1737570643292,-308.33647276,0.00019938,2]
[350019347,1737570643495,-500.0,0.00019999,2]
[350019348,1737570643506,-500.0,0.00019999,2]
[350019349,1737570643515,-82.15806281,0.0002,2]
[350019350,1737570643527,-6253.75790323,0.0002,2]
[350019351,1737570643542,-8513.37308389,0.0002,2]
[350019352,1737570643553,-737.12091166,0.0002,2]
[350019353,1737570643564,-10329.03186,0.0002,2]
[350019354,1737570643575,-267273.99204242,0.0002,2]
[350019355,1737570643586,-12674.517128,0.0002,2]
[350019356,1737570643690,-381.72800014,0.0002,2]
[350019592,1737570646242,-500.0,0.00019999,2]
[350019594,1737570646252,-408.689568,0.00019999,2]
[350019596,1737570646261,-500.0,0.00019999,2]
[350019598,1737570646270,-1159.8000205,0.0002,2]
[350019606,1737570646411,-586.19112201,0.0002,2]
[350019608,1737570646423,-32656.47642704,0.0002,2]
[350019610,1737570646432,-2186.92806484,0.00020038,2]
[350019612,1737570646442,-500.0,0.00020055,2]
[350019614,1737570646451,-2186.92806484,0.00020107,2]
[350019616,1737570646460,-2622.05223995,0.00020122,2]
[350019618,1737570646469,-4650.79153084,0.00020171,2]
[350019620,1737570646479,-162.46808222,0.00020172,2]
[350019622,1737570646488,-5000.0,0.00020172,2]
[350019624,1737570646497,-3515.2689,0.00020173,2]
[350019626,1737570646506,-12865.561,0.00020173,2]
[350019628,1737570646515,-1994.61973681,0.00020173,2]
[350019630,1737570646530,-718.7,0.00020173,2]
[350019870,1737570797896,183.85,0.00010137,2]
[350019877,1737571696067,154.41,0.00010137,2]
[350019904,1737571831430,-550.0,0.00015,2]
[350019906,1737571831440,-300.0,0.00016812,2]
[350019907,1737571831450,-38744.21503145,0.00016813,10]
[350019908,1737571831459,-183.85,0.00016813,2]
[350019909,1737571831468,-600.0,0.00017,2]
[350019910,1737571831478,-809.55,0.00017328,2]
[350019911,1737571831487,-1702.866,0.00018328,2]
[350019912,1737571831496,-404.0,0.00018366,2]
[350019913,1737571831505,-310.61,0.00018413,2]
[350019914,1737571831514,-850.0,0.00018545,2]
[350019915,1737571831523,-1838.57,0.00018546,2]
[350019916,1737571831533,-5662.18,0.00018546,2]
[350019917,1737571831542,-2040.38494358,0.00018546,2]
[350019918,1737571831554,-61396.61505642,0.00018546,2]
[350019919,1737571831563,-500.0,0.00018548,2]
[350019920,1737571831573,-419.56,0.00018562,2]
[350019921,1737571831583,-150.99,0.00018562,2]
[350019922,1737571831592,-1500.0,0.00018637,2]
[350019923,1737571831601,-280.42,0.00018657,2]
[350019924,1737571831611,-1000.0,0.00018723,2]
[350019925,1737571831620,-250.0,0.00018807,2]
[350019926,1737571831630,-1664.98,0.00019065,2]
[350019927,1737571831639,-250.0,0.00019123,2]
[350019928,1737571831648,-417.06062667,0.00019256,2]
[350019929,1737571831657,-177.3,0.00019385,2]
[350019930,1737571831667,-257.8,0.00019477,2]
[350019931,1737571831676,-417.06062667,0.00019487,2]
[350019932,1737571831686,-167.07,0.00019496,2]
[350019933,1737571831696,-809.55,0.00019592,2]
[350019934,1737571831705,-815.13,0.00019798,2]
[350019935,1737571831714,-788.523,0.00019798,2]
[350019936,1737571831723,-8717.36091204,0.00019799,2]
[350019937,1737571831733,-4954.19479833,0.00019799,2]
[350019938,1737571831742,-208.92298433,0.000198,2]
[350019939,1737571831751,-157.89,0.00019814,30]
[350019940,1737571831760,-333.29,0.00019888,2]
[350019941,1737571831770,-390.5,0.00019897,2]
[350019942,1737571831779,-500.0,0.00019897,2]
[350019943,1737571831788,-500.0,0.00019897,2]
[350019944,1737571831797,-502.70990708,0.00019897,2]
[350019945,1737571831807,-300.58345539,0.00019897,2]
[350019946,1737571831816,-500.0,0.00019897,2]
[350019947,1737571831825,-231.12833825,0.00019897,2]
[350019948,1737571831834,-500.0,0.00019897,2]
[350019949,1737571831843,-500.0,0.00019897,2]
[350019950,1737571831853,-500.0,0.00019897,2]
[350019951,1737571831862,-500.0,0.00019897,2]
[350019952,1737571831871,-500.0,0.00019897,2]
[350019953,1737571831880,-500.0,0.00019897,2]
[350019954,1737571831889,-500.0,0.00019897,2]
[350019955,1737571831898,-77.12230536,0.00019897,2]
[350019956,1737571831910,-430.55578551,0.00019897,2]
[350019957,1737571831919,-500.0,0.00019897,2]
[350019958,1737571831929,-500.0,0.00019897,2]
[350019959,1737571831938,-353.98420938,0.00019897,2]
[350019960,1737571831949,-0.72879615,0.00019897,2]
[350019961,1737571831960,-500.0,0.00019897,2]
[350019962,1737571831969,-500.0,0.00019897,2]
[350019963,1737571831979,-500.0,0.00019897,2]
[350019964,1737571831988,-500.0,0.00019897,2]
[350019965,1737571831998,-500.0,0.00019897,2]
[350019966,1737571832007,-500.0,0.00019897,2]
[350019967,1737571832016,-500.0,0.00019897,2]
[350019968,1737571832025,-185.99393113,0.00019897,2]
[350019969,1737571832035,-7.98627953,0.00019897,2]
[350019970,1737571832046,-234.50495056,0.00019897,2]
[350019971,1737571832057,-500.0,0.00019897,2]
[350019972,1737571832067,-189.29250811,0.00019897,2]
[350019973,1737571832079,-310.70749189,0.00019897,2]
[350019974,1737571832088,-102.5044474,0.00019897,2]
[350019975,1737571832099,-397.4955526,0.00019897,2]